[Event "*** SCC Grand Prix: Titled Tuesday Blitz"]
[Site "Chess.com"]
[Date "2020.07.21"]
[Round "4"]
[White "Yashasd1995"]
[Black "Falia-p"]
[Result "1-0"]
[WhiteElo "2550"]
[BlackElo "2314"]
[TimeControl "180+1"]
[EndTime "10:38:31 PDT"]
[Termination "Yashasd1995 won on time"]

1. b3 {[%clk 0:03:00.9]} 1... Nf6 {[%clk 0:02:59.2]} 2. Bb2 {[%clk 0:03:01.1]}
2... g6 {[%clk 0:02:59.6]} 3. Bxf6 {[%clk 0:03:00.7]} 3... exf6 {[%clk
0:02:59.4]} 4. c4 {[%clk 0:03:01.6]} 4... Bg7 {[%clk 0:02:50.8]} 5. Nc3 {[%clk
0:03:00.6]} 5... O-O {[%clk 0:02:49.7]} 6. Nf3 {[%clk 0:02:59.7]} 6... f5 {[%clk
0:02:48.2]} 7. Rc1 {[%clk 0:02:59]} 7... c5 {[%clk 0:02:46.6]} 8. g3 {[%clk
0:02:58.8]} 8... Nc6 {[%clk 0:02:46.2]} 9. Bg2 {[%clk 0:02:58.9]} 9... d6 {[%clk
0:02:40.9]} 10. O-O {[%clk 0:02:57.3]} 10... Be6 {[%clk 0:02:40.1]} 11. Ne1
{[%clk 0:02:57.5]} 11... Re8 {[%clk 0:02:37.5]} 12. e3 {[%clk 0:02:51.6]} 12...
h5 {[%clk 0:02:37.2]} 13. h4 {[%clk 0:02:46.8]} 13... a6 {[%clk 0:02:31.2]} 14.
Nd3 {[%clk 0:02:43.5]} 14... Qe7 {[%clk 0:02:14.8]} 15. Nf4 {[%clk 0:02:42.6]}
15... Rad8 {[%clk 0:02:08]} 16. Nfd5 {[%clk 0:02:40.9]} 16... Qf8 {[%clk
0:02:02.9]} 17. a3 {[%clk 0:02:33.7]} 17... Be5 {[%clk 0:01:52.2]} 18. b4 {[%clk
0:02:30.4]} 18... Qg7 {[%clk 0:01:47]} 19. Qa4 {[%clk 0:02:15.6]} 19... cxb4
{[%clk 0:01:36.3]} 20. axb4 {[%clk 0:02:14.1]} 20... g5 {[%clk 0:01:18.5]} 21.
hxg5 {[%clk 0:02:12.7]} 21... Qxg5 {[%clk 0:01:15.7]} 22. f4 {[%clk 0:01:53.9]}
22... Qxg3 {[%clk 0:01:15.2]} 23. fxe5 {[%clk 0:01:53.9]} 23... Nxe5 {[%clk
0:01:15.2]} 24. Nf6+ {[%clk 0:01:53.1]} 24... Kf8 {[%clk 0:01:13.8]} 25. Nxe8
{[%clk 0:01:51.2]} 25... Rxe8 {[%clk 0:01:13.5]} 26. Nd5 {[%clk 0:01:46.7]}
26... Bxd5 {[%clk 0:01:04.5]} 27. cxd5 {[%clk 0:01:44.6]} 27... h4 {[%clk
0:01:02.7]} 28. Qd1 {[%clk 0:01:37.7]} 28... h3 {[%clk 0:01:01.5]} 29. Qe2
{[%clk 0:01:37.9]} 29... Ng4 {[%clk 0:00:59]} 30. Rf3 {[%clk 0:01:35.4]} 30...
Qh2+ {[%clk 0:00:48.8]} 31. Kf1 {[%clk 0:01:35.5]} 31... hxg2+ {[%clk
0:00:38.6]} 32. Qxg2 {[%clk 0:01:36.4]} 32... Qe5 {[%clk 0:00:37.3]} 33. Rf4
{[%clk 0:01:34]} 33... Qb2 {[%clk 0:00:33.4]} 34. Rc7 {[%clk 0:01:27]} 34...
Rxe3 {[%clk 0:00:32.6]} 35. Rxf7+ {[%clk 0:01:12.2]} 35... Ke8 {[%clk
0:00:27.7]} 36. Qxg4 {[%clk 0:00:41.9]} 36... fxg4 {[%clk 0:00:16.6]} 37. dxe3
{[%clk 0:00:40.8]} 37... Qb1+ {[%clk 0:00:08.9]} 38. Kg2 {[%clk 0:00:39.9]}
38... Qc2+ {[%clk 0:00:07.8]} 39. Kg3 {[%clk 0:00:40]} 39... Qg6 {[%clk
0:00:06.8]} 40. Rxb7 {[%clk 0:00:35.1]} 40... Kd8 {[%clk 0:00:02.7]} 41. Rf8+
{[%clk 0:00:33.8]} 41... Qe8 {[%clk 0:00:02.3]} 42. Rb8+ {[%clk 0:00:34.1]} 1-0

[Event "*** SCC Grand Prix: Titled Tuesday Blitz"]
[Site "Chess.com"]
[Date "2020.07.21"]
[Round "4"]
[White "Noam_Vitenberg"]
[Black "jb2mix"]
[Result "0-1"]
[WhiteElo "2482"]
[BlackElo "2677"]
[TimeControl "180+1"]
[EndTime "10:38:32 PDT"]
[Termination "jb2mix won by checkmate"]

1. d4 {[%clk 0:03:00.9]} 1... Nf6 {[%clk 0:02:56.9]} 2. c4 {[%clk 0:03:00.8]}
2... g6 {[%clk 0:02:57.2]} 3. Nc3 {[%clk 0:03:00.6]} 3... Bg7 {[%clk 0:02:58.1]}
4. e4 {[%clk 0:03:00.5]} 4... O-O {[%clk 0:02:59]} 5. Nf3 {[%clk 0:03:01.1]}
5... d6 {[%clk 0:02:59.5]} 6. Be2 {[%clk 0:03:01.6]} 6... e5 {[%clk 0:02:59.8]}
7. Be3 {[%clk 0:03:02]} 7... Ng4 {[%clk 0:02:58.9]} 8. Bg5 {[%clk 0:03:01.6]}
8... f6 {[%clk 0:02:56.3]} 9. Bc1 {[%clk 0:03:02]} 9... Nc6 {[%clk 0:02:49.7]}
10. d5 {[%clk 0:03:02.3]} 10... Ne7 {[%clk 0:02:49.5]} 11. h3 {[%clk 0:03:02.3]}
11... Nh6 {[%clk 0:02:49.4]} 12. h4 {[%clk 0:03:02.9]} 12... f5 {[%clk
0:02:48.5]} 13. h5 {[%clk 0:02:58.2]} 13... f4 {[%clk 0:02:46.5]} 14. Ng5 {[%clk
0:02:43.1]} 14... c6 {[%clk 0:02:35.2]} 15. g3 {[%clk 0:02:32.5]} 15... Nxd5
{[%clk 0:02:22]} 16. cxd5 {[%clk 0:02:22.9]} 16... Qxg5 {[%clk 0:02:21.5]} 17.
dxc6 {[%clk 0:02:23.1]} 17... Qf6 {[%clk 0:02:13]} 18. Nd5 {[%clk 0:02:20.9]}
18... Qf7 {[%clk 0:02:12.9]} 19. Bc4 {[%clk 0:02:12.9]} 19... Be6 {[%clk
0:01:56.8]} 20. cxb7 {[%clk 0:02:09.2]} 20... fxg3 {[%clk 0:01:54.6]} 21. f4
{[%clk 0:02:01.2]} 21... Rab8 {[%clk 0:01:46.1]} 22. f5 {[%clk 0:01:47.4]} 22...
gxf5 {[%clk 0:01:45.4]} 23. Bxh6 {[%clk 0:01:43.1]} 23... Bxh6 {[%clk
0:01:41.1]} 24. exf5 {[%clk 0:01:43.3]} 24... Kh8 {[%clk 0:01:41.5]} 25. O-O
{[%clk 0:01:31.5]} 25... Bxf5 {[%clk 0:01:26]} 26. Qe2 {[%clk 0:01:17]} 26...
Qxb7 {[%clk 0:01:21.2]} 27. Rad1 {[%clk 0:01:00.1]} 27... Bh3 {[%clk 0:01:00]}
28. Rf3 {[%clk 0:00:46.1]} 28... Rxf3 {[%clk 0:00:50.8]} 29. Qxf3 {[%clk
0:00:47]} 29... Qxb2 {[%clk 0:00:51.7]} 30. Qe2 {[%clk 0:00:17.3]} 30... Bg4
{[%clk 0:00:30.2]} 31. Qxb2 {[%clk 0:00:12.4]} 31... Rxb2 {[%clk 0:00:31.1]} 32.
Rf1 {[%clk 0:00:12.1]} 32... e4 {[%clk 0:00:30.4]} 33. Bb3 {[%clk 0:00:11.4]}
33... Bg7 {[%clk 0:00:29]} 34. Rf4 {[%clk 0:00:10]} 34... Bd4+ {[%clk
0:00:29.1]} 35. Kf1 {[%clk 0:00:05.6]} 35... g2+ {[%clk 0:00:29.4]} 36. Ke1
{[%clk 0:00:01.8]} 36... g1=Q+ {[%clk 0:00:26.8]} 37. Rf1 {[%clk 0:00:01.7]}
37... Bf2# {[%clk 0:00:26.1]} 0-1

[Event "*** SCC Grand Prix: Titled Tuesday Blitz"]
[Site "Chess.com"]
[Date "2020.07.21"]
[Round "4"]
[White "AlexOstrovskiy"]
[Black "londonkid"]
[Result "1-0"]
[WhiteElo "2609"]
[BlackElo "2415"]
[TimeControl "180+1"]
[EndTime "10:38:32 PDT"]
[Termination "AlexOstrovskiy won by resignation"]

1. d4 {[%clk 0:03:00.9]} 1... e6 {[%clk 0:03:00.3]} 2. Nf3 {[%clk 0:02:59.6]}
2... Nf6 {[%clk 0:03:00.7]} 3. Bf4 {[%clk 0:02:58.8]} 3... b6 {[%clk 0:03:01.1]}
4. e3 {[%clk 0:02:58.8]} 4... Bb7 {[%clk 0:03:01.6]} 5. Nbd2 {[%clk 0:02:59.3]}
5... Be7 {[%clk 0:03:02.2]} 6. h3 {[%clk 0:02:59.9]} 6... O-O {[%clk 0:03:02.6]}
7. Be2 {[%clk 0:02:58.4]} 7... c5 {[%clk 0:03:03.1]} 8. c3 {[%clk 0:02:58.2]}
8... cxd4 {[%clk 0:03:03.4]} 9. exd4 {[%clk 0:02:58.2]} 9... d6 {[%clk
0:03:03.7]} 10. Bh2 {[%clk 0:02:57.5]} 10... Nbd7 {[%clk 0:03:04.1]} 11. O-O
{[%clk 0:02:58.1]} 11... Re8 {[%clk 0:03:04.2]} 12. Re1 {[%clk 0:02:58.7]} 12...
h6 {[%clk 0:03:04.3]} 13. a4 {[%clk 0:02:59.3]} 13... a6 {[%clk 0:03:04.2]} 14.
Bd3 {[%clk 0:02:57.4]} 14... Bf8 {[%clk 0:03:03.9]} 15. Nc4 {[%clk 0:02:57.5]}
15... Qc7 {[%clk 0:03:04.1]} 16. Nfd2 {[%clk 0:02:41.2]} 16... b5 {[%clk
0:02:57.2]} 17. Ne3 {[%clk 0:02:37.1]} 17... Bc6 {[%clk 0:02:54.5]} 18. axb5
{[%clk 0:02:33.5]} 18... axb5 {[%clk 0:02:55]} 19. Qb3 {[%clk 0:02:34]} 19...
Qb7 {[%clk 0:02:50.1]} 20. Qb4 {[%clk 0:02:11.8]} 20... e5 {[%clk 0:02:36.7]}
21. Rxa8 {[%clk 0:01:50.2]} 21... Rxa8 {[%clk 0:02:35.5]} 22. f3 {[%clk
0:01:28.5]} 22... d5 {[%clk 0:02:28.2]} 23. Qb3 {[%clk 0:01:27.9]} 23... e4
{[%clk 0:02:26]} 24. fxe4 {[%clk 0:01:23.7]} 24... dxe4 {[%clk 0:02:26.2]} 25.
Be2 {[%clk 0:01:21.6]} 25... b4 {[%clk 0:02:07.2]} 26. c4 {[%clk 0:01:18.9]}
26... Ba4 {[%clk 0:02:04.7]} 27. Qa2 {[%clk 0:01:15.1]} 27... Bc2 {[%clk
0:02:00.9]} 28. Qxa8 {[%clk 0:01:14.9]} 28... Qxa8 {[%clk 0:02:00.8]} 29. Nxc2
{[%clk 0:01:15.8]} 29... Qa4 {[%clk 0:01:45.7]} 30. b3 {[%clk 0:01:08]} 30...
Qa2 {[%clk 0:01:40.8]} 31. Bd1 {[%clk 0:01:08]} 31... Qb2 {[%clk 0:01:27.8]} 32.
Bf4 {[%clk 0:00:57.6]} 32... g5 {[%clk 0:01:12.2]} 33. Be3 {[%clk 0:00:56.4]}
33... Bg7 {[%clk 0:01:12.2]} 34. Nxb4 {[%clk 0:00:50.8]} 34... Ne8 {[%clk
0:01:05.2]} 35. Nxe4 {[%clk 0:00:38.4]} 35... Bxd4 {[%clk 0:01:03]} 36. Nd5
{[%clk 0:00:38]} 36... Bxe3+ {[%clk 0:01:00.7]} 37. Rxe3 {[%clk 0:00:38]} 37...
Qd4 {[%clk 0:00:59.1]} 38. Bf3 {[%clk 0:00:35.9]} 38... Nb6 {[%clk 0:00:51.8]}
39. Ne7+ {[%clk 0:00:32.9]} 39... Kf8 {[%clk 0:00:49]} 40. Nf5 {[%clk
0:00:33.8]} 40... Qa1+ {[%clk 0:00:48.9]} 41. Kh2 {[%clk 0:00:28.4]} 41... Qe5+
{[%clk 0:00:48.5]} 42. Neg3 {[%clk 0:00:27.7]} 42... Qf4 {[%clk 0:00:47.3]} 43.
c5 {[%clk 0:00:23.8]} 43... Nd7 {[%clk 0:00:46.8]} 44. Bc6 {[%clk 0:00:21.7]}
44... Ne5 {[%clk 0:00:40.7]} 45. Bxe8 {[%clk 0:00:17.2]} 45... Kxe8 {[%clk
0:00:40.4]} 46. Re4 {[%clk 0:00:17.3]} 46... Qd2 {[%clk 0:00:34.9]} 47. Rxe5+
{[%clk 0:00:17.4]} 47... Kd7 {[%clk 0:00:35.5]} 48. Nxh6 {[%clk 0:00:16.4]}
48... Kc6 {[%clk 0:00:35.5]} 49. Nxf7 {[%clk 0:00:15.6]} 49... Qf4 {[%clk
0:00:36.1]} 50. Nd8+ {[%clk 0:00:11.2]} 50... Kd7 {[%clk 0:00:35.5]} 51. Rd5+
{[%clk 0:00:11.1]} 51... Kc7 {[%clk 0:00:35.6]} 52. Ne6+ {[%clk 0:00:10.7]} 1-0

[Event "*** SCC Grand Prix: Titled Tuesday Blitz"]
[Site "Chess.com"]
[Date "2020.07.21"]
[Round "4"]
[White "DenLaz"]
[Black "Man-Chuk"]
[Result "0-1"]
[WhiteElo "2708"]
[BlackElo "2850"]
[TimeControl "180+1"]
[EndTime "10:38:35 PDT"]
[Termination "Man-Chuk won by checkmate"]

1. d4 {[%clk 0:03:00.4]} 1... Nf6 {[%clk 0:02:51.5]} 2. c4 {[%clk 0:02:57.7]}
2... e6 {[%clk 0:02:51.8]} 3. Nf3 {[%clk 0:02:53.8]} 3... b6 {[%clk 0:02:51.6]}
4. a3 {[%clk 0:02:53]} 4... Bb7 {[%clk 0:02:51.1]} 5. Nc3 {[%clk 0:02:53.1]}
5... d5 {[%clk 0:02:51.3]} 6. Bg5 {[%clk 0:02:50.8]} 6... Be7 {[%clk 0:02:49.5]}
7. Bxf6 {[%clk 0:02:51.3]} 7... Bxf6 {[%clk 0:02:49.3]} 8. cxd5 {[%clk 0:02:52]}
8... exd5 {[%clk 0:02:50.2]} 9. Qa4+ {[%clk 0:02:51.9]} 9... c6 {[%clk
0:02:46.3]} 10. g3 {[%clk 0:02:50.8]} 10... O-O {[%clk 0:02:46]} 11. Rd1 {[%clk
0:02:49.1]} 11... Nd7 {[%clk 0:02:45.3]} 12. Bh3 {[%clk 0:02:47.7]} 12... Kh8
{[%clk 0:02:34.8]} 13. O-O {[%clk 0:02:41.4]} 13... Be7 {[%clk 0:02:32.8]} 14.
e3 {[%clk 0:02:18.9]} 14... Bd6 {[%clk 0:02:28.5]} 15. Rd2 {[%clk 0:02:18.7]}
15... f5 {[%clk 0:02:27.6]} 16. Rfd1 {[%clk 0:02:16.7]} 16... g5 {[%clk
0:02:27.2]} 17. Bg2 {[%clk 0:02:15.9]} 17... Qe7 {[%clk 0:02:12.8]} 18. b4
{[%clk 0:02:15.2]} 18... b5 {[%clk 0:02:06.5]} 19. Qb3 {[%clk 0:02:12.2]} 19...
a5 {[%clk 0:02:06.8]} 20. Rb2 {[%clk 0:02:10.8]} 20... Nb6 {[%clk 0:01:58.7]}
21. Nd2 {[%clk 0:02:09.2]} 21... Nc4 {[%clk 0:01:57.3]} 22. Nxc4 {[%clk
0:02:06.8]} 22... bxc4 {[%clk 0:01:24.2]} 23. Qc2 {[%clk 0:02:05.4]} 23... axb4
{[%clk 0:01:24.1]} 24. axb4 {[%clk 0:02:06.3]} 24... f4 {[%clk 0:01:17.7]} 25.
exf4 {[%clk 0:01:58.3]} 25... gxf4 {[%clk 0:01:16.7]} 26. b5 {[%clk 0:01:54.3]}
26... f3 {[%clk 0:01:14.9]} 27. Bf1 {[%clk 0:01:53.5]} 27... Rf6 {[%clk
0:01:08.2]} 28. bxc6 {[%clk 0:01:52.1]} 28... Bxc6 {[%clk 0:01:09.1]} 29. Rb6
{[%clk 0:01:48]} 29... Qd7 {[%clk 0:00:54.7]} 30. Qd2 {[%clk 0:01:20.7]} 30...
Rg8 {[%clk 0:00:50.5]} 31. Re1 {[%clk 0:01:05.8]} 31... Bc7 {[%clk 0:00:46.5]}
32. Ra6 {[%clk 0:01:04]} 32... Qf5 {[%clk 0:00:28.3]} 33. Re7 {[%clk 0:00:36.3]}
33... Bf4 {[%clk 0:00:27.8]} 34. Qe1 {[%clk 0:00:33.4]} 34... Bxg3 {[%clk
0:00:27.5]} 35. hxg3 {[%clk 0:00:27.8]} 35... Rxg3+ {[%clk 0:00:26.9]} 36. Kh2
{[%clk 0:00:26.9]} 36... Rh6+ {[%clk 0:00:07.5]} 37. Kxg3 {[%clk 0:00:26.7]}
37... Rg6+ {[%clk 0:00:08]} 38. Kh2 {[%clk 0:00:23.5]} 38... Qf4+ {[%clk
0:00:08.2]} 39. Kh3 {[%clk 0:00:19.9]} 39... Qh6# {[%clk 0:00:07.9]} 0-1

[Event "*** SCC Grand Prix: Titled Tuesday Blitz"]
[Site "Chess.com"]
[Date "2020.07.21"]
[Round "4"]
[White "dretch"]
[Black "ftorodent"]
[Result "1-0"]
[WhiteElo "2835"]
[BlackElo "2642"]
[TimeControl "180+1"]
[EndTime "10:38:35 PDT"]
[Termination "dretch won by resignation"]

1. d4 {[%clk 0:03:00.9]} 1... d5 {[%clk 0:02:59.5]} 2. c4 {[%clk 0:03:00.7]}
2... e6 {[%clk 0:02:59.6]} 3. Nc3 {[%clk 0:03:00.7]} 3... Be7 {[%clk 0:02:59.8]}
4. cxd5 {[%clk 0:02:59]} 4... exd5 {[%clk 0:03:00]} 5. Bf4 {[%clk 0:02:59.7]}
5... c6 {[%clk 0:02:59.8]} 6. e3 {[%clk 0:02:54.5]} 6... Bd6 {[%clk 0:02:57.6]}
7. Bg3 {[%clk 0:02:51.7]} 7... Ne7 {[%clk 0:02:55.2]} 8. Nf3 {[%clk 0:02:50.2]}
8... O-O {[%clk 0:02:51.1]} 9. Bd3 {[%clk 0:02:42.4]} 9... Bf5 {[%clk
0:02:50.8]} 10. Nh4 {[%clk 0:02:37.5]} 10... Bxd3 {[%clk 0:02:46.4]} 11. Qxd3
{[%clk 0:02:38.4]} 11... Na6 {[%clk 0:02:42.7]} 12. a3 {[%clk 0:02:33.2]} 12...
Nc7 {[%clk 0:02:41.5]} 13. O-O {[%clk 0:02:29.1]} 13... f5 {[%clk 0:02:35.9]}
14. Bxd6 {[%clk 0:02:26.2]} 14... Qxd6 {[%clk 0:02:35.9]} 15. f4 {[%clk
0:02:26.9]} 15... Ne6 {[%clk 0:02:28.5]} 16. Nf3 {[%clk 0:02:24]} 16... c5
{[%clk 0:02:27.5]} 17. Ne5 {[%clk 0:02:21.3]} 17... c4 {[%clk 0:02:25.4]} 18.
Qc2 {[%clk 0:02:19.2]} 18... a6 {[%clk 0:02:24.4]} 19. Kh1 {[%clk 0:02:19.1]}
19... b5 {[%clk 0:02:21]} 20. g4 {[%clk 0:02:17.5]} 20... fxg4 {[%clk
0:02:18.5]} 21. f5 {[%clk 0:02:11.4]} 21... Nc5 {[%clk 0:02:08]} 22. Rf4 {[%clk
0:01:22.2]} 22... Nd3 {[%clk 0:02:03.8]} 23. Nxd3 {[%clk 0:01:21.9]} 23... cxd3
{[%clk 0:01:58.4]} 24. Qxd3 {[%clk 0:01:22.8]} 24... g6 {[%clk 0:01:45.1]} 25.
fxg6 {[%clk 0:01:08.7]} 25... Nxg6 {[%clk 0:01:44.9]} 26. Rxg4 {[%clk
0:01:07.1]} 26... Rf2 {[%clk 0:01:44.6]} 27. Rg2 {[%clk 0:01:02.2]} 27... Rxg2
{[%clk 0:01:37.6]} 28. Kxg2 {[%clk 0:01:01.5]} 28... Rf8 {[%clk 0:01:33.9]} 29.
Rg1 {[%clk 0:00:59]} 29... Qe6 {[%clk 0:01:19.7]} 30. Qe2 {[%clk 0:00:56.1]}
30... Re8 {[%clk 0:01:07.4]} 31. Qh5 {[%clk 0:00:27.6]} 31... Qxe3 {[%clk
0:00:54.6]} 32. Qxd5+ {[%clk 0:00:27.5]} 32... Kh8 {[%clk 0:00:54.6]} 33. Kh1
{[%clk 0:00:26.2]} 33... Qd2 {[%clk 0:00:38.9]} 34. Ne4 {[%clk 0:00:16.7]} 34...
Qf4 {[%clk 0:00:27.7]} 35. Ng3 {[%clk 0:00:10]} 35... Qf6 {[%clk 0:00:16.5]} 36.
Rf1 {[%clk 0:00:09.9]} 36... Qe7 {[%clk 0:00:14.5]} 37. Qf7 {[%clk 0:00:09.6]}
37... Qxf7 {[%clk 0:00:12]} 38. Rxf7 {[%clk 0:00:10.5]} 38... Re1+ {[%clk
0:00:12.2]} 39. Rf1 {[%clk 0:00:10.5]} 39... Rb1 {[%clk 0:00:12.8]} 40. Rxb1
{[%clk 0:00:10.3]} 1-0

[Event "*** SCC Grand Prix: Titled Tuesday Blitz"]
[Site "Chess.com"]
[Date "2020.07.21"]
[Round "4"]
[White "SiddharthGMJagadeesh"]
[Black "Haapana"]
[Result "1-0"]
[WhiteElo "2559"]
[BlackElo "2336"]
[TimeControl "180+1"]
[EndTime "10:38:35 PDT"]
[Termination "SiddharthGMJagadeesh won on time"]

1. d4 {[%clk 0:03:00.9]} 1... Nf6 {[%clk 0:02:58.1]} 2. Nf3 {[%clk 0:03:01]}
2... g6 {[%clk 0:02:58.3]} 3. c3 {[%clk 0:03:01.4]} 3... Bg7 {[%clk 0:02:58.2]}
4. Bg5 {[%clk 0:03:02.1]} 4... d5 {[%clk 0:02:50.9]} 5. Nbd2 {[%clk 0:03:01.6]}
5... c6 {[%clk 0:02:36.8]} 6. e3 {[%clk 0:02:59.9]} 6... Bf5 {[%clk 0:02:37]} 7.
Qb3 {[%clk 0:02:56.6]} 7... Qb6 {[%clk 0:02:35.5]} 8. a4 {[%clk 0:02:54.8]} 8...
Nbd7 {[%clk 0:02:28.8]} 9. a5 {[%clk 0:02:54.8]} 9... Qxb3 {[%clk 0:02:26.7]}
10. Nxb3 {[%clk 0:02:55.7]} 10... O-O {[%clk 0:02:09.6]} 11. Bf4 {[%clk
0:02:51.5]} 11... Nh5 {[%clk 0:02:06.3]} 12. h3 {[%clk 0:02:49.3]} 12... Nxf4
{[%clk 0:02:05.5]} 13. exf4 {[%clk 0:02:50.2]} 13... b6 {[%clk 0:01:37.9]} 14.
Be2 {[%clk 0:02:44.7]} 14... c5 {[%clk 0:01:20.9]} 15. O-O {[%clk 0:02:41.8]}
15... c4 {[%clk 0:01:13.3]} 16. Nbd2 {[%clk 0:02:39.7]} 16... Rfb8 {[%clk
0:00:30.6]} 17. g4 {[%clk 0:02:34.8]} 17... Be6 {[%clk 0:00:25.5]} 18. a6 {[%clk
0:02:29.6]} 18... Nf6 {[%clk 0:00:18.1]} 19. Ng5 {[%clk 0:02:28.1]} 19... Bd7
{[%clk 0:00:16.9]} 20. Ngf3 {[%clk 0:02:23.7]} 20... Rc8 {[%clk 0:00:16.9]} 21.
Ne5 {[%clk 0:02:23.6]} 21... Rc7 {[%clk 0:00:17.3]} 22. Bf3 {[%clk 0:02:22.9]}
22... Rd8 {[%clk 0:00:17.5]} 23. Kg2 {[%clk 0:02:20.6]} 23... e6 {[%clk
0:00:17.1]} 24. Rfe1 {[%clk 0:02:12.9]} 24... Bc8 {[%clk 0:00:17.4]} 25. Nf1
{[%clk 0:02:08.9]} 25... Ne8 {[%clk 0:00:17.6]} 26. Bd1 {[%clk 0:01:59.6]} 26...
f6 {[%clk 0:00:17.3]} 27. Nf3 {[%clk 0:01:59.7]} 27... Nd6 {[%clk 0:00:15.8]}
28. Bc2 {[%clk 0:01:59.5]} 28... f5 {[%clk 0:00:14.4]} 29. Ne5 {[%clk
0:01:55.6]} 29... Nf7 {[%clk 0:00:14.4]} 30. Nxf7 {[%clk 0:01:52.4]} 30... Kxf7
{[%clk 0:00:14.8]} 31. Nd2 {[%clk 0:01:51.3]} 31... Bf6 {[%clk 0:00:13.8]} 32.
g5 {[%clk 0:01:50]} 32... Be7 {[%clk 0:00:11.8]} 33. h4 {[%clk 0:01:48]} 33...
Bd6 {[%clk 0:00:11.8]} 34. Kf3 {[%clk 0:01:48.1]} 34... Kg8 {[%clk 0:00:10.7]}
35. h5 {[%clk 0:01:47.5]} 35... Rg7 {[%clk 0:00:10.7]} 36. Rh1 {[%clk
0:01:47.1]} 36... Kf7 {[%clk 0:00:10.8]} 37. Rh4 {[%clk 0:01:46.3]} 37... Re8
{[%clk 0:00:10.2]} 38. Rah1 {[%clk 0:01:46]} 38... Bd7 {[%clk 0:00:10.2]} 39.
hxg6+ {[%clk 0:01:46.3]} 39... hxg6 {[%clk 0:00:10.4]} 40. Ke3 {[%clk
0:01:38.7]} 40... b5 {[%clk 0:00:09.6]} 41. Nf3 {[%clk 0:01:34.5]} 41... Rb8
{[%clk 0:00:08.8]} 42. Rh8 {[%clk 0:01:31.4]} 42... Rxh8 {[%clk 0:00:07.7]} 43.
Rxh8 {[%clk 0:01:32.3]} 43... Rg8 {[%clk 0:00:08]} 44. Rh7+ {[%clk 0:01:27.2]}
44... Rg7 {[%clk 0:00:08.4]} 45. Rh6 {[%clk 0:01:28.1]} 45... Bc8 {[%clk
0:00:06.9]} 46. Rh1 {[%clk 0:01:22.9]} 46... Bd7 {[%clk 0:00:06.1]} 47. b4
{[%clk 0:01:02]} 47... Rg8 {[%clk 0:00:05.8]} 48. Rh7+ {[%clk 0:00:55.3]} 48...
Rg7 {[%clk 0:00:06]} 49. Rh6 {[%clk 0:00:56.2]} 49... Rg8 {[%clk 0:00:05.5]} 50.
Nh4 {[%clk 0:00:55.5]} 50... Rg7 {[%clk 0:00:05.7]} 51. Bd1 {[%clk 0:00:55.7]}
51... Bc8 {[%clk 0:00:05.8]} 52. Nxg6 {[%clk 0:00:55.4]} 52... Bxa6 {[%clk
0:00:02.7]} 53. Bh5 {[%clk 0:00:55.2]} 53... Kg8 {[%clk 0:00:02.8]} 54. Rh8+
{[%clk 0:00:55.2]} 1-0

[Event "*** SCC Grand Prix: Titled Tuesday Blitz"]
[Site "Chess.com"]
[Date "2020.07.21"]
[Round "4"]
[White "S2PAc"]
[Black "David_Paravyan"]
[Result "1/2-1/2"]
[WhiteElo "2796"]
[BlackElo "3001"]
[TimeControl "180+1"]
[EndTime "10:38:38 PDT"]
[Termination "Game drawn by agreement"]

1. d4 {[%clk 0:03:00.9]} 1... Nf6 {[%clk 0:02:49.1]} 2. c4 {[%clk 0:03:01.4]}
2... g6 {[%clk 0:02:47.5]} 3. g3 {[%clk 0:03:01.2]} 3... Bg7 {[%clk 0:02:44.8]}
4. Bg2 {[%clk 0:03:01.8]} 4... O-O {[%clk 0:02:45.3]} 5. Nf3 {[%clk 0:03:02]}
5... c5 {[%clk 0:02:42.1]} 6. O-O {[%clk 0:02:58.8]} 6... cxd4 {[%clk
0:02:40.4]} 7. Nxd4 {[%clk 0:02:59.7]} 7... d5 {[%clk 0:02:40.5]} 8. cxd5 {[%clk
0:02:53.1]} 8... Nxd5 {[%clk 0:02:41.4]} 9. Nb5 {[%clk 0:02:52.8]} 9... Be6
{[%clk 0:02:38.7]} 10. Nd4 {[%clk 0:02:45.7]} 10... Bc8 {[%clk 0:02:37.8]} 11.
Nb3 {[%clk 0:02:36.5]} 11... Nb4 {[%clk 0:02:18.3]} 12. Nc3 {[%clk 0:02:36.1]}
12... N8c6 {[%clk 0:02:16.4]} 13. Bf4 {[%clk 0:02:28.4]} 13... Bg4 {[%clk
0:02:05.5]} 14. a3 {[%clk 0:02:17.3]} 14... Qxd1 {[%clk 0:01:51.7]} 15. Raxd1
{[%clk 0:02:18.2]} 15... Nc2 {[%clk 0:01:51.5]} 16. Rd2 {[%clk 0:02:12]} 16...
N2d4 {[%clk 0:01:48.6]} 17. Nxd4 {[%clk 0:02:05.2]} 17... Bxd4 {[%clk
0:01:23.7]} 18. Rfd1 {[%clk 0:01:45.2]} 18... Bxc3 {[%clk 0:01:21.7]} 19. bxc3
{[%clk 0:01:46.1]} 19... Rfd8 {[%clk 0:01:17.5]} 20. Bxc6 {[%clk 0:01:31.8]}
20... Rxd2 {[%clk 0:01:15.3]} 21. Rxd2 {[%clk 0:01:32.7]} 21... bxc6 {[%clk
0:01:15.7]} 22. f3 {[%clk 0:01:33.6]} 22... Be6 {[%clk 0:01:14]} 23. Rb2 {[%clk
0:01:33]} 23... Rd8 {[%clk 0:01:07.9]} 24. Kf2 {[%clk 0:01:22.6]} 24... f6
{[%clk 0:01:06.7]} 25. Be3 {[%clk 0:01:14.6]} 25... a5 {[%clk 0:00:49]} 26. Rb7
{[%clk 0:01:10]} 26... Rd7 {[%clk 0:00:46.8]} 27. Rb8+ {[%clk 0:01:09.2]} 27...
Kf7 {[%clk 0:00:46.3]} 28. Ra8 {[%clk 0:01:09.7]} 28... Rd5 {[%clk 0:00:43.6]}
29. c4 {[%clk 0:01:05.1]} 29... Rh5 {[%clk 0:00:38.9]} 30. h4 {[%clk 0:00:48]}
30... Bxc4 {[%clk 0:00:38.4]} 31. Bd2 {[%clk 0:00:48]} 31... Rb5 {[%clk
0:00:35.4]} 32. Rxa5 {[%clk 0:00:43.5]} 32... Rb2 {[%clk 0:00:35.7]} 33. Ke1
{[%clk 0:00:38.8]} 33... Rb1+ {[%clk 0:00:19.9]} 34. Kf2 {[%clk 0:00:38.4]}
34... Rb2 {[%clk 0:00:19.2]} 35. Ke1 {[%clk 0:00:38.9]} 35... Rb1+ {[%clk
0:00:18.1]} 36. Kf2 {[%clk 0:00:39.2]} 36... Rh1 {[%clk 0:00:12.9]} 37. Kg2
{[%clk 0:00:16.3]} 37... Rd1 {[%clk 0:00:13.1]} 38. Bb4 {[%clk 0:00:16.8]} 38...
Rd7 {[%clk 0:00:12.2]} 39. Kf2 {[%clk 0:00:16]} 39... h5 {[%clk 0:00:11.2]} 40.
Rc5 {[%clk 0:00:15.7]} 40... Bb5 {[%clk 0:00:10.8]} 1/2-1/2